fUST/lending_fUST_20251012
["ID","MTS","AMOUNT","RATE_DAILY","PERIOD"]
[390950943,1760230250570,-603.74,0.00022169,2]
[390950944,1760230250579,-500.0,0.00022169,2]
[390950945,1760230250588,-500.0,0.00022169,2]
[390950946,1760230250597,-549.6,0.00022169,2]
[390950947,1760230250606,-500.0,0.00022169,2]
[390950948,1760230250618,-500.0,0.00022169,2]
[390950949,1760230250626,-500.0,0.00022169,2]
[390950950,1760230250636,-500.0,0.00022169,2]
[390950951,1760230250645,-500.0,0.00022169,2]
[390950952,1760230250654,-361.76,0.00022169,2]
[390950953,1760230250663,-500.0,0.00022169,2]
[390950954,1760230250672,-500.0,0.00022169,2]
[390950955,1760230250681,-500.0,0.00022169,2]
[390950956,1760230250690,-500.0,0.00022169,2]
[390950957,1760230250699,-500.0,0.0002217,2]
[390950958,1760230250709,-500.0,0.0002217,2]
[390950959,1760230250718,-500.0,0.0002217,2]
[390950960,1760230250727,-500.0,0.0002217,2]
[390950961,1760230250737,-641.54,0.0002217,2]
[390950962,1760230250746,-500.0,0.0002217,2]
[390950963,1760230250755,-500.0,0.0002217,2]
[390950964,1760230250764,-500.0,0.0002217,2]
[390950965,1760230250773,-419.31668576,0.0002217,2]
[390950966,1760230250782,-500.0,0.0002217,2]
[390950967,1760230250791,-500.0,0.0002217,2]
[390950968,1760230250800,-500.0,0.0002217,2]
[390950969,1760230250809,-500.0,0.0002217,2]
[390950970,1760230250818,-500.0,0.0002217,2]
[390950971,1760230250827,-500.0,0.0002217,2]
[390950972,1760230250835,-500.0,0.0002217,2]
[390950973,1760230250844,-500.0,0.0002217,2]
[390950974,1760230250853,-500.0,0.0002217,2]
[390950975,1760230250862,-500.0,0.0002217,2]
[390950976,1760230250872,-500.0,0.0002217,2]
[390950977,1760230250881,-500.0,0.0002217,2]
[390950978,1760230250891,-500.0,0.0002217,2]
[390950979,1760230250900,-500.0,0.0002217,2]
[390950980,1760230250909,-500.0,0.0002217,2]
[390950981,1760230250918,-500.0,0.0002217,2]
[390950982,1760230250927,-500.0,0.0002217,2]
[390950983,1760230250936,-500.0,0.0002217,2]
[390950984,1760230250945,-500.0,0.0002217,2]
[390950985,1760230250954,-481.61804401,0.0002217,2]
[390950986,1760230250963,-500.0,0.0002217,2]
[390950987,1760230250973,-500.0,0.0002217,2]
[390950988,1760230250983,-500.0,0.0002217,2]
[390950989,1760230250993,-500.0,0.0002217,2]
[390950990,1760230251002,-500.0,0.0002217,2]
[390950991,1760230251014,-500.0,0.0002217,2]
[390950992,1760230251023,-500.0,0.0002217,2]
[390950993,1760230251032,-500.0,0.0002217,2]
[390950994,1760230251045,-500.0,0.0002217,2]
[390950995,1760230251054,-500.0,0.0002217,2]
[390950996,1760230251064,-500.0,0.0002217,2]
[390950997,1760230251073,-500.0,0.0002217,2]
[390950998,1760230251083,-500.0,0.0002217,2]
[390950999,1760230251092,-500.0,0.0002217,2]
[390951000,1760230251101,-500.0,0.0002217,2]
[390951001,1760230251110,-500.0,0.0002217,2]
[390951002,1760230251122,-500.0,0.0002217,2]
[390951003,1760230251132,-500.0,0.0002217,2]
[390951004,1760230251141,-500.0,0.0002217,2]
[390951005,1760230251150,-597.52537494,0.0002217,2]
[390951006,1760230251160,-500.0,0.0002217,2]
[390951007,1760230251169,-500.0,0.0002217,2]
[390951008,1760230251178,-500.0,0.0002217,2]
[390951009,1760230251187,-257.25,0.0002217,2]
[390951010,1760230251196,-500.0,0.0002217,2]
[390951011,1760230251205,-500.0,0.0002217,2]
[390951012,1760230251214,-500.0,0.0002217,2]
[390951013,1760230251223,-500.0,0.0002217,2]
[390951014,1760230251233,-151.28,0.0002217,2]
[390951015,1760230251242,-500.0,0.0002217,2]
[390951016,1760230251251,-500.0,0.0002217,2]
[390951017,1760230251260,-500.0,0.0002217,2]
[390951018,1760230251269,-500.0,0.0002217,2]
[390951019,1760230251278,-500.0,0.0002217,2]
[390951020,1760230251288,-500.0,0.0002217,2]
[390951021,1760230251297,-516.48604312,0.0002217,2]
[390951022,1760230251307,-500.0,0.0002217,2]
[390951023,1760230251316,-500.0,0.0002217,2]
[390951024,1760230251325,-500.0,0.0002217,2]
[390951025,1760230251335,-500.0,0.0002217,2]
[390951026,1760230251344,-500.0,0.0002217,2]
[390951027,1760230251353,-500.0,0.0002217,2]
[390951028,1760230251362,-500.0,0.0002217,2]
[390951029,1760230251507,-500.0,0.0002217,2]
[390951030,1760230251517,-500.0,0.0002217,2]
[390951031,1760230251526,-500.0,0.0002217,2]
[390951032,1760230251535,-500.0,0.0002217,2]
[390951033,1760230251544,-500.0,0.0002217,2]
[390951034,1760230251553,-500.0,0.0002217,2]
[390951035,1760230251562,-500.0,0.0002217,2]
[390951036,1760230251571,-500.0,0.0002217,2]
[390951037,1760230251580,-500.0,0.0002217,2]
[390951038,1760230251589,-500.0,0.0002217,2]
[390951039,1760230251599,-301.69,0.0002217,2]
[390951040,1760230251608,-500.0,0.0002217,2]
[390951041,1760230251618,-500.0,0.0002217,2]
[390951042,1760230251628,-515.5,0.0002217,2]
[390951043,1760230251637,-500.0,0.0002217,2]
[390951044,1760230251647,-500.0,0.0002217,2]
[390951045,1760230251656,-500.0,0.0002217,2]
[390951046,1760230251666,-500.0,0.0002217,2]
[390951047,1760230251675,-500.0,0.0002217,2]
[390951048,1760230251684,-500.0,0.0002217,2]
[390951049,1760230251694,-572.24,0.0002217,2]
[390951050,1760230251703,-500.0,0.0002217,2]
[390951051,1760230251712,-500.0,0.0002217,2]
[390951052,1760230251722,-500.0,0.0002217,2]
[390951053,1760230251731,-500.0,0.0002217,2]
[390951054,1760230251741,-555.21,0.0002217,2]
[390951055,1760230251750,-500.0,0.0002217,2]
[390951056,1760230251759,-500.0,0.0002217,2]
[390951057,1760230251768,-500.0,0.0002217,2]
[390951058,1760230251778,-500.0,0.0002217,2]
[390951059,1760230251787,-500.0,0.0002217,2]
[390951060,1760230251796,-500.0,0.0002217,2]
[390951061,1760230251805,-500.0,0.0002217,2]
[390951062,1760230251814,-500.0,0.0002217,2]
[390951063,1760230251824,-500.0,0.0002217,2]
[390951064,1760230251833,-532.98,0.0002217,2]
[390951065,1760230251842,-627.55423215,0.0002217,2]
[390951066,1760230251852,-500.0,0.00022173,2]
[390951067,1760230251861,-500.0,0.00022173,2]
[390951068,1760230251871,-617.18139601,0.00022173,2]
[390951069,1760230251880,-500.0,0.00022173,2]
[390951070,1760230251889,-500.28208769,0.00022173,2]
[390951071,1760230251898,-279.75802418,0.00022173,2]
[390951072,1760230251908,-500.128199,0.00022173,2]
[390951073,1760230251917,-500.0,0.00022173,2]
[390951074,1760230251927,-500.0,0.00022173,2]
[390951075,1760230251936,-500.0,0.00022173,2]
[390951076,1760230251945,-500.0,0.00022173,2]
[390951077,1760230251955,-500.0,0.00022173,2]
[390951078,1760230251964,-500.0,0.00022173,2]
[390951079,1760230251972,-500.0,0.00022173,2]
[390951080,1760230251981,-375.37911949,0.00022173,2]
[390951081,1760230251991,-303.82076833,0.00022173,2]
[390951082,1760230252000,-500.0,0.00022173,2]
[390951083,1760230252009,-500.0,0.00022173,2]
[390951084,1760230252018,-500.3923014,0.00022173,2]
[390951085,1760230252027,-500.0,0.00022173,2]
[390951086,1760230252036,-500.0,0.00022173,2]
[390951087,1760230252053,-500.0,0.00022173,2]
[390951088,1760230252062,-527.3885147,0.00022173,2]
[390951089,1760230252072,-500.0,0.00022173,2]
[390951090,1760230252081,-163.44082459,0.00022173,2]
[390951091,1760230252091,-500.0,0.00022173,2]
[390951092,1760230252100,-500.0,0.00022173,2]
[390951093,1760230252110,-500.0,0.00022173,2]
[390951094,1760230252121,-500.0,0.00022173,2]
[390951095,1760230252130,-261.54958746,0.00022173,2]
[390951096,1760230252139,-500.0,0.00022173,2]
[390951097,1760230252149,-500.0,0.00022173,2]
[390951098,1760230252158,-207.91827889,0.00022173,2]
[390951099,1760230252167,-169.41773488,0.00022173,2]
[390951100,1760230252176,-500.0,0.00022173,2]
[390951101,1760230252185,-500.0,0.00022173,2]
[390951102,1760230252194,-200.31661724,0.00022173,2]
[390951103,1760230252203,-500.0,0.00022173,2]
[390951104,1760230252212,-500.0,0.00022173,2]
[390951105,1760230252221,-486.57230199,0.00022173,2]
[390951106,1760230252230,-500.0,0.00022173,2]
[390951107,1760230252240,-201.31478402,0.00022173,2]
[390951108,1760230252249,-500.0,0.00022173,2]
[390951109,1760230252258,-500.0,0.00022173,2]
[390951110,1760230252267,-500.0,0.00022173,2]
[390951111,1760230252276,-500.0,0.00022173,2]
[390951112,1760230252286,-500.0,0.00022173,2]
[390951113,1760230252295,-500.0,0.00022173,2]
[390951114,1760230252304,-500.0,0.00022173,2]
[390951115,1760230252313,-500.0,0.00022173,2]
[390951116,1760230252323,-500.0,0.00022173,2]
[390951117,1760230252332,-500.0,0.00022173,2]
[390951118,1760230252341,-500.0,0.00022173,2]
[390951119,1760230252351,-480.11179748,0.00022173,2]
[390951120,1760230252360,-500.0,0.00022173,2]
[390951121,1760230252369,-500.0,0.00022173,2]
[390951122,1760230252378,-500.0,0.00022173,2]
[390951123,1760230252387,-500.0,0.00022173,2]
[390951124,1760230252396,-500.0,0.00022173,2]
[390951125,1760230252405,-500.0,0.00022173,2]
[390951126,1760230252414,-500.0,0.00022173,2]
[390951127,1760230252423,-500.0,0.00022173,2]
[390951128,1760230252432,-183.14814588,0.00022173,2]
[390951129,1760230252441,-151.0,0.000222,6]
[390951130,1760230252451,-151.0,0.000222,5]
[390951131,1760230252460,-151.0,0.000222,8]
[390951132,1760230252470,-376.0,0.00022251,2]
[390951133,1760230252480,-500.0,0.00022262,2]
[390951134,1760230252489,-202.00734115,0.00022267,2]
[390951135,1760230252499,-469.18916531,0.00022271,2]
[390951136,1760230252508,-1876.75666123,0.00022271,2]
[390951137,1760230252517,-649.874,0.00022271,2]
[390951138,1760230252526,-181.01326445,0.00022271,2]
[390951139,1760230252535,-4222.70248778,0.00022271,2]
[390951140,1760230252545,-7507.02664494,0.00022271,2]
[390951141,1760230252554,-620.76395124,0.00022271,2]
[390951142,1760230252564,-2483.05580497,0.00022271,2]
[390951143,1760230252573,-151.0,0.000223,6]
[390951144,1760230252582,-500.0,0.00022328,5]
[390951145,1760230252592,-217.78,0.00022328,2]
[390951146,1760230252601,-500.0,0.00022341,5]
[390951147,1760230252610,-151.0,0.000224,5]
[390951148,1760230252620,-1435.37882442,0.00022505,2]
[390951149,1760230252629,-300.0,0.00022509,20]
[390951150,1760230252638,-300.0,0.00022509,20]
[390951151,1760230252647,-300.0,0.00022509,20]
[390951152,1760230252656,-300.0,0.00022509,20]
[390951153,1760230252665,-300.0,0.00022509,20]
[390951154,1760230252674,-300.0,0.00022509,20]
[390951155,1760230252684,-300.0,0.00022509,20]
[390951156,1760230252693,-300.0,0.00022509,20]
[390951157,1760230252702,-300.0,0.00022509,20]
[390951158,1760230252711,-300.0,0.00022509,20]
[390951159,1760230252720,-300.0,0.00022509,20]
[390951160,1760230252730,-300.0,0.00022509,20]
[390951161,1760230252739,-300.0,0.00022509,20]
[390951162,1760230252749,-300.0,0.00022509,20]
[390951163,1760230252759,-300.0,0.00022509,20]
[390951164,1760230252768,-221.09760791,0.00022516,2]
[390951165,1760230252778,-500.0,0.00022521,2]
[390951166,1760230252788,-1001.50198284,0.00022521,2]
[390951167,1760230252797,-1000.0,0.00022521,2]
[390951168,1760230252806,-1000.0,0.00022521,2]
[390951169,1760230252815,-1000.0,0.00022521,2]
[390951170,1760230252825,-1000.0,0.00022521,2]
[390951171,1760230252834,-1000.0,0.00022521,2]
[390951172,1760230252843,-1000.0,0.00022521,2]
[390951173,1760230252853,-487.68790263,0.00022533,2]
[390951174,1760230252861,-500.0,0.00022536,2]
[390951175,1760230252871,-376.23458888,0.00022554,2]
[390951176,1760230252881,-151.0,0.000226,7]
[390951177,1760230252890,-500.0,0.00022602,5]
[390951178,1760230252899,-19292.2273969,0.00022602,2]
[390951179,1760230252908,-151.0,0.00022602,2]
[390951180,1760230252917,-168.3888056,0.00022602,2]
[390951181,1760230252927,-217.78,0.00022602,2]
[390951182,1760230252937,-600.0,0.00022608,20]
[390951183,1760230252947,-500.0,0.00022615,5]
[390951184,1760230252956,-1000.0,0.00022621,2]
[390951185,1760230252965,-1000.0,0.00022621,2]
[390951186,1760230252973,-151.0,0.00022621,7]
[390951187,1760230252982,-151.0,0.00022621,7]
[390951188,1760230252991,-151.0,0.00022621,7]
[390951189,1760230253001,-151.0,0.00022621,7]
[390951190,1760230253010,-151.0,0.00022621,7]
[390951191,1760230253019,-151.0,0.00022621,7]
[390951192,1760230253029,-188.604063,0.00022621,7]
[390951193,1760230253039,-249.699503,0.00022621,7]
[390951194,1760230253051,-258.718148,0.00022621,7]
[390951195,1760230253061,-249.699503,0.00022621,7]
[390951196,1760230253070,-249.699503,0.00022621,7]
[390951197,1760230253079,-249.699503,0.00022621,7]
[390951198,1760230253090,-151.0,0.00022621,7]
[390951199,1760230253100,-151.0,0.00022621,7]
[390951200,1760230253109,-192.099203,0.00022621,7]
[390951201,1760230253121,-192.099203,0.00022621,7]
[390951202,1760230253134,-151.0,0.00022621,7]
[390951203,1760230253143,-192.099203,0.00022621,7]
[390951204,1760230253154,-192.099203,0.00022621,7]
[390951205,1760230253163,-151.0,0.00022621,7]
[390951206,1760230253172,-151.0,0.00022621,7]
[390951207,1760230253182,-151.0,0.00022621,7]
[390951208,1760230253191,-151.0,0.00022621,7]
[390951209,1760230253200,-151.0,0.00022621,7]
[390951210,1760230253210,-151.0,0.00022621,7]
[390951211,1760230253219,-151.0,0.00022621,7]
[390951212,1760230253229,-151.0,0.00022621,7]
[390951213,1760230253238,-151.0,0.00022621,7]
[390951214,1760230253247,-151.0,0.00022621,7]
[390951215,1760230253257,-190.760591,0.00022621,7]
[390951216,1760230253266,-151.0,0.00022621,7]
[390951217,1760230253275,-190.760591,0.00022621,7]
[390951218,1760230253284,-151.0,0.00022621,7]
[390951219,1760230253293,-190.760591,0.00022621,7]
[390951220,1760230253302,-190.760591,0.00022621,7]
[390951221,1760230253311,-186.648147,0.00022621,7]
[390951222,1760230253321,-186.648147,0.00022621,7]
[390951223,1760230253330,-186.648147,0.00022621,7]
[390951224,1760230253339,-186.648147,0.00022621,7]
[390951225,1760230253348,-151.0,0.00022621,7]
[390951226,1760230253357,-151.0,0.00022621,7]
[390951227,1760230253366,-410.651133,0.00022621,7]
[390951228,1760230253376,-226.011292,0.00022621,7]
[390951229,1760230253385,-410.651133,0.00022621,7]
[390951230,1760230253395,-410.651133,0.00022621,7]
[390951231,1760230253404,-410.651133,0.00022621,7]
[390951232,1760230253414,-151.0,0.00022621,7]
[390951233,1760230253423,-151.0,0.00022621,7]
[390951234,1760230253433,-151.0,0.00022621,7]
[390951235,1760230253442,-151.0,0.00022621,7]
[390951236,1760230253452,-151.0,0.00022621,7]
[390951237,1760230253462,-151.0,0.00022621,7]
[390951238,1760230253471,-151.0,0.00022621,7]
[390951239,1760230253480,-151.0,0.00022621,7]
[390951240,1760230253490,-151.0,0.00022621,7]
[390951241,1760230253499,-151.0,0.00022621,7]
[390951242,1760230253509,-151.0,0.00022621,7]
[390951243,1760230253518,-151.0,0.00022621,7]
[390951244,1760230253527,-151.0,0.00022621,7]
[390951245,1760230253537,-151.0,0.00022621,7]
[390951246,1760230253546,-151.0,0.00022621,7]
[390951247,1760230253555,-151.0,0.00022621,7]
[390951248,1760230253564,-213.605424,0.00022621,7]
[390951249,1760230253573,-447.993979,0.00022621,7]
[390951250,1760230253583,-447.993979,0.00022621,7]
[390951251,1760230253591,-447.993979,0.00022621,7]
[390951252,1760230253600,-447.993979,0.00022621,7]
[390951253,1760230253615,-2932.26075897,0.00022675,2]
[390951254,1760230253625,-5581.28868563,0.00022689,2]
[390951255,1760230253635,-151.0,0.000227,10]
[390951256,1760230253645,-500.0,0.00022721,2]
[390951257,1760230253656,-1000.0,0.00022721,2]
[390951258,1760230253667,-1000.0,0.00022721,2]
[390951259,1760230253677,-844.94064717,0.00022721,2]
[390951260,1760230253687,-1000.0,0.00022721,2]
[390951261,1760230253696,-1000.0,0.00022721,2]
[390951262,1760230253705,-1000.0,0.00022721,2]
[390951263,1760230253715,-1000.0,0.00022721,2]
[390951264,1760230253724,-1000.0,0.00022721,2]
[390951265,1760230253733,-1000.0,0.00022721,2]
[390951266,1760230253743,-1070.81427335,0.00022721,2]
[390951267,1760230253752,-1003.39326423,0.00022721,2]
[390951268,1760230253761,-581.13848068,0.00022721,2]
[390951269,1760230253770,-1000.0,0.00022721,2]
[390951270,1760230253780,-1000.0,0.00022721,2]
[390951271,1760230253789,-1000.0,0.00022721,2]
[390951272,1760230253798,-1000.0,0.00022721,2]
[390951273,1760230253807,-1000.0,0.00022721,2]
[390951274,1760230253816,-1000.0,0.00022721,2]
[390951275,1760230253826,-1000.0,0.00022721,2]
[390951276,1760230253835,-1000.0,0.00022721,2]
[390951277,1760230253844,-1000.0,0.00022721,2]
[390951278,1760230253853,-1000.0,0.00022721,2]
[390951279,1760230253863,-507.75987965,0.00022721,2]
[390951280,1760230253873,-1000.0,0.00022721,2]
[390951281,1760230253882,-1000.0,0.00022721,2]
[390951282,1760230253892,-500.56618965,0.00022721,2]
[390951283,1760230253901,-1000.0,0.00022721,2]
[390951284,1760230253911,-269.65851983,0.00022721,2]
[390951285,1760230253920,-1000.0,0.00022721,2]
[390951286,1760230253929,-1007.73679106,0.00022721,2]
[390951287,1760230253939,-1000.0,0.00022721,2]
[390951288,1760230253948,-1000.0,0.00022721,2]
[390951289,1760230253958,-1000.0,0.00022721,2]
[390951290,1760230253968,-500.0,0.00022721,2]
[390951291,1760230253978,-1000.0,0.00022721,2]
[390951292,1760230253987,-1000.0,0.00022721,2]
[390951293,1760230253997,-1000.0,0.00022721,2]
[390951294,1760230254008,-1000.0,0.00022721,2]
[390951295,1760230254018,-1000.0,0.00022721,2]
[390951296,1760230254027,-1000.0,0.00022721,2]
[390951297,1760230254038,-440.95734321,0.00022721,2]
[390951298,1760230254051,-1000.0,0.00022721,2]
[390951299,1760230254060,-151.0,0.00022721,7]
[390951300,1760230254071,-151.0,0.00022721,7]
[390951301,1760230254092,-229.02777,0.00022721,7]
[390951302,1760230254113,-229.02777,0.00022721,7]
[390951303,1760230254132,-229.02777,0.00022721,7]
[390951304,1760230254143,-229.02777,0.00022721,7]
[390951305,1760230254153,-151.0,0.00022721,7]
[390951306,1760230254163,-151.0,0.00022721,7]
[390951307,1760230254172,-151.0,0.00022721,7]
[390951308,1760230254182,-151.0,0.00022721,7]
[390951309,1760230254194,-151.0,0.00022721,7]
[390951310,1760230254203,-151.0,0.00022721,7]
[390951311,1760230254212,-282.396118,0.00022721,7]
[390951312,1760230254224,-151.0,0.00022721,7]
[390951313,1760230254234,-151.0,0.00022721,7]
[390951314,1760230254244,-151.0,0.00022721,7]
[390951315,1760230254255,-151.0,0.00022721,7]
[390951316,1760230254271,-723.727711,0.00022721,7]
[390951317,1760230254287,-723.727711,0.00022721,7]
[390951318,1760230254297,-151.0,0.00022721,7]
[390951319,1760230254306,-723.727711,0.00022721,7]
[390951320,1760230254316,-151.0,0.00022721,7]
[390951321,1760230254325,-723.727711,0.00022721,7]
[390951322,1760230254335,-151.0,0.00022721,7]
[390951323,1760230254345,-151.0,0.00022721,7]
[390951324,1760230254355,-151.0,0.00022721,7]
[390951325,1760230254366,-256.893011,0.00022721,7]
[390951326,1760230254376,-151.0,0.00022721,7]
[390951327,1760230254385,-256.893011,0.00022721,7]
[390951328,1760230254395,-256.893011,0.00022721,7]
[390951329,1760230254404,-256.893011,0.00022721,7]
[390951330,1760230254414,-210.786716,0.00022721,7]
[390951331,1760230254424,-210.786716,0.00022721,7]
[390951332,1760230254432,-210.786716,0.00022721,7]
[390951333,1760230254442,-175.102284,0.00022721,7]
[390951334,1760230254451,-210.786716,0.00022721,7]
[390951335,1760230254460,-151.0,0.00022721,7]
[390951336,1760230254470,-151.0,0.00022721,7]
[390951337,1760230254479,-554.809293,0.00022721,7]
[390951338,1760230254488,-151.0,0.00022721,7]
[390951339,1760230254498,-151.0,0.00022721,7]
[390951340,1760230254507,-554.809293,0.00022721,7]
[390951341,1760230254517,-160.0,0.00022754,2]
[390951342,1760230254526,-151.0,0.000228,5]
[390951343,1760230254535,-500.0,0.0002281,2]
[390951344,1760230254544,-1950.75161052,0.00022819,2]
[390951345,1760230254554,-1435.37882442,0.00022823,2]
[390951346,1760230254564,-3130.3010136,0.00022839,5]
[390951347,1760230254573,-500.0,0.00022876,5]
[390951348,1760230254583,-217.78,0.00022876,2]
[390951349,1760230254592,-500.0,0.00022889,5]
[390951350,1760230254601,-151.0,0.000229,7]
[390951351,1760230254610,-1567.70890803,0.000229,7]
[390951352,1760230254620,-500.0,0.00022973,2]
[390951353,1760230254629,-500.0,0.00022973,2]
[390951354,1760230254639,-501.35042252,0.00022973,2]
[390951355,1760230254648,-177.28429681,0.00022973,2]
[390951356,1760230254658,-163.24919086,0.00022973,2]
[390951357,1760230254667,-500.0,0.00022973,2]
[390951358,1760230254676,-320.63419957,0.00022973,2]
[390951359,1760230254685,-500.0,0.00022973,2]
[390951360,1760230254698,-500.54225061,0.00022973,2]
[390951361,1760230254717,-500.1912246,0.00022973,2]
[390951362,1760230254727,-500.0,0.00022973,2]
[390951363,1760230254735,-500.0,0.00022973,2]
[390951364,1760230254745,-418.86217252,0.00022992,2]
[390951365,1760230254926,-151.0,0.00023,5]
[390951366,1760230254937,-12035.55156866,0.00023,2]
[390951367,1760230254946,-1567.70890803,0.00023,10]
[390951368,1760230254956,-7493.03771209,0.00023049,2]
[390951369,1760230254965,-1500.0,0.00023068,2]
[390951370,1760230254974,-1000.59476898,0.00023068,2]
[390951371,1760230254983,-1500.0,0.00023068,2]
[390951372,1760230254992,-1068.67253914,0.00023068,2]
[390951373,1760230255001,-1500.0,0.00023068,2]
[390951374,1760230255010,-504.28662136,0.00023068,2]
[390951375,1760230255020,-500.0,0.00023084,2]
[390951376,1760230255031,-151.0,0.00023094,2]
[390951377,1760230255044,-246.41484151,0.00023094,2]
[390951378,1760230255053,-500.0,0.00023094,2]
[390951379,1760230255063,-500.0,0.00023094,2]
[390951380,1760230255072,-500.0,0.00023094,2]
[390951381,1760230255082,-151.0,0.00023094,2]
[390951382,1760230255091,-151.0,0.00023094,2]
[390951383,1760230255101,-151.0,0.00023094,2]
[390951384,1760230255111,-151.08841618,0.00023094,2]
[390951385,1760230255121,-151.0,0.00023094,2]
[390951386,1760230255131,-151.0,0.00023094,2]
[390951387,1760230255140,-201.49879296,0.00023096,2]
[390951388,1760230255149,-4389.19112367,0.00023105,2]
[390951389,1760230255159,-151.0,0.00023149,2]
[390951390,1760230255169,-500.0,0.00023149,2]
[390951391,1760230255178,-500.0,0.00023149,2]
[390951392,1760230255188,-500.0,0.00023149,2]
[390951393,1760230255197,-151.35326993,0.00023149,2]
[390951394,1760230255207,-151.0,0.00023149,2]
[390951395,1760230255216,-151.0,0.00023149,2]
[390951396,1760230255226,-500.0,0.0002315,5]
[390951397,1760230255235,-20006.03981059,0.0002315,2]
[390951398,1760230255245,-156.3726324,0.0002315,2]
[390951399,1760230255255,-217.80904035,0.0002315,2]
[390951400,1760230255264,-425.30866569,0.00023154,2]
[390951401,1760230255273,-500.0,0.00023163,5]
[390951402,1760230255282,-3667.00675797,0.00023168,2]
[390951403,1760230255291,-156.86003574,0.00023168,2]
[390951404,1760230255300,-1500.0,0.00023168,2]
[390951405,1760230255309,-500.0,0.00023173,2]
[390951406,1760230255319,-502.59945279,0.00023173,2]
[390951407,1760230255328,-432.67824504,0.00023173,2]
[390951408,1760230255337,-599.90783163,0.00023173,2]
[390951409,1760230255346,-500.0,0.00023173,2]
[390951410,1760230255355,-502.01206102,0.00023173,2]
[390951411,1760230255364,-248.44886256,0.00023173,2]
[390951412,1760230255373,-245.15009123,0.00023173,2]
[390951413,1760230255382,-500.0,0.00023173,2]
[390951414,1760230255391,-257.23543379,0.00023173,2]
[390951415,1760230255400,-500.0,0.00023173,2]
[390951416,1760230255409,-500.0,0.00023173,2]
[390951417,1760230255418,-500.11743503,0.00023173,2]
[390951418,1760230255428,-200.32173389,0.00023173,2]
[390951419,1760230255437,-255.80682142,0.00023173,2]
[390951420,1760230255447,-500.0,0.00023173,2]
[390951421,1760230255456,-291.45974772,0.00023173,2]
[390951422,1760230255465,-500.0,0.00023173,2]
[390951423,1760230255474,-500.0,0.00023173,2]
[390951424,1760230255483,-500.0,0.00023173,2]
[390951425,1760230255492,-282.5801296,0.00023173,2]
[390951426,1760230255501,-299.23514147,0.00023173,2]
[390951427,1760230255510,-500.0,0.00023173,2]
[390951428,1760230255519,-500.0,0.00023173,2]
[390951429,1760230255528,-500.84319843,0.00023173,2]
[390951430,1760230255542,-469.35315239,0.00023173,2]
[390951431,1760230255551,-500.0,0.00023173,2]
[390951432,1760230255560,-500.0,0.00023173,2]
[390951433,1760230255569,-500.0,0.00023173,2]
[390951434,1760230255578,-500.0,0.00023173,2]
[390951435,1760230255588,-500.0,0.00023173,2]
[390951436,1760230255597,-500.0,0.00023198,2]
[390951437,1760230255606,-151.0,0.000232,8]
[390951438,1760230255616,-1435.37882442,0.00023201,2]
[390951439,1760230255626,-198.88999291,0.00023204,2]
[390951440,1760230255635,-500.0,0.00023204,2]
[390951441,1760230255645,-349.79909831,0.00023204,2]
[390951442,1760230255655,-303.96144327,0.00023204,2]